bitfinex-derivatives/quotes_SOLF0:USTF0_20250606
["timestamp","ask_amount","ask_price","bid_price","bid_amount"]
[1749184967088,47.60511055,147.74,147.73,6.7658]
[1749184967690,36.89711092,147.74,147.73,6.7658]
[1749184967989,47.61924733,147.74,147.73,6.7658]
[1749184968191,47.61925286,147.74,147.73,6.7658]
[1749184968390,42.77875689,147.74,147.73,6.7658]
[1749184968791,47.61925336,147.74,147.73,6.7658]
[1749184969088,41.73760739,147.74,147.73,6.7658]
[1749184969390,47.62240817,147.74,147.73,6.7658]
[1749184969581,2.73711092,147.74,147.73,11.57769453]
[1749184970985,423.96,147.8,147.73,4.81189453]
[1749184971188,423.96,147.8,147.72,0.05224348]
[1749184971189,10.72827646,147.79,147.77,4.81189453]
[1749184971382,5.88451234,147.78,147.77,4.81189453]
[1749184971582,13.54267221,147.78,147.77,4.81189453]
[1749184971782,13.54266756,147.78,147.77,4.81189453]
[1749184971986,10.72827145,147.78,147.77,4.81189453]
[1749184972292,4.84375961,147.78,147.77,11.57589453]
[1749184972996,0.04724854,147.79,147.78,6.7635]
[1749184973291,13.58460976,147.79,147.76,0.04762073]
[1749184973487,8.69697302,147.78,147.76,0.04762073]
[1749184973681,13.54273585,147.77,147.76,0.04762073]
[1749184973991,4.84053218,147.77,147.76,0.04762073]
[1749184974200,4.84053218,147.77,147.76,6.81212073]
[1749184974486,0.04724854,147.79,147.76,0.04762073]
[1749184974691,0.04724854,147.79,147.78,11.57539453]
[1749184975989,0.04724854,147.79,147.78,6.7635]
[1749184976288,13.58439546,147.79,147.78,6.7635]
[1749184976489,0.04724854,147.79,147.78,6.7635]
[1749184977196,4.91617602,147.79,147.78,6.7635]
[1749184977493,4.91618384,147.79,147.78,6.7635]
[1749184978092,4.92781064,147.79,147.78,6.7635]
[1749184978295,0.04724854,147.79,147.78,6.7635]
[1749184978597,4.92780069,147.79,147.78,6.7635]
[1749184979288,0.04724854,147.79,147.78,6.7635]
[1749184979493,4.92780114,147.79,147.78,6.7635]
[1749184979793,0.04724854,147.79,147.78,6.7635]
[1749184980596,0.04724854,147.79,147.78,11.57539453]
[1749184980990,4.854e-05,147.79,147.78,11.57539453]
[1749184981189,4.87541933,147.83,147.82,6.7617]
[1749184981391,34.12,147.84,147.79,4.81189453]
[1749184981792,10.75656604,147.83,147.82,6.7615]
[1749184981997,34.12,147.84,147.81,4.81189453]
[1749184982196,34.16741299,147.84,147.81,4.8629716]
[1749184982492,0.04741299,147.84,147.81,0.05107707]
[1749184982699,0.04741299,147.84,147.83,6.7612]
[1749184983301,0.04741299,147.84,147.81,0.05107707]
[1749184983302,0.04741299,147.84,147.82,6.7616]
[1749184983593,44.9128833,147.84,147.82,6.7616]
[1749184983794,34.16741299,147.84,147.81,0.05107707]
[1749184983988,34.16741299,147.84,147.83,6.7612]
[1749184997197,0.04741299,147.84,147.83,6.7612]
[1749184997405,34.1,147.87,147.82,4.81189453]
[1749184997997,34.1,147.87,147.78,34.1]
[1749184998193,34.1,147.87,147.82,4.81189453]
[1749184998395,34.1,147.87,147.83,0.04767743]
[1749184999803,34.1,147.87,147.84,6.7607]
[1749185000398,34.1,147.87,147.83,0.04767743]
[1749185000603,34.1,147.87,147.85,6.7603]
[1749185001008,34.1,147.87,147.83,6.80867743]
[1749185001905,4.90182128,147.86,147.83,6.80867743]
[1749185002107,40.8595,147.87,147.83,6.80867743]
[1749185002308,4.90721055,147.86,147.83,6.80867743]
[1749185002503,4.90721079,147.86,147.84,6.7608]
[1749185002708,34.1,147.87,147.84,6.7608]
[1749185003514,40.8596,147.87,147.84,6.7608]
[1749185003813,40.8596,147.87,147.83,6.80877743]
[1749185004011,6.7607,147.85,147.83,0.04767743]
[1749185004213,9.71896604,147.84,147.83,0.04767743]
[1749185004607,6.7618,147.82,147.75,38.6494]
[1749185004803,34.1,147.81,147.72,34.1]
[1749185005111,4.91243545,147.8,147.76,6.7645]
[1749185005408,6.7635,147.79,147.74,4.81189453]
[1749185005600,0.05118737,147.78,147.75,0.04490672]
[1749185006114,0.05118737,147.78,147.76,6.7645]
[1749185008016,0.05118737,147.78,147.75,0.04490672]
[1749185008608,0.05118737,147.78,147.75,6.80970672]
[1749185009502,38.97922149,147.77,147.75,0.04490672]
[1749185009718,34.1,147.77,147.75,0.04490672]
[1749185010111,40.8642,147.77,147.75,0.04490672]
[1749185010409,34.1,147.77,147.75,0.04490672]
[1749185010612,6.7645,147.76,147.75,0.04490672]
[1749185010811,6.7645,147.76,147.69,4.81189453]
[1749185010812,18.41332178,147.76,147.69,4.81189453]
[1749185011109,6.7658,147.74,147.7,6.7669]
[1749185011312,6.7658,147.74,147.68,2.2032]
[1749185011313,34.1,147.73,147.68,7.01509453]
[1749185011711,0.05002043,147.72,147.69,0.04884635]
[1749185011913,0.05002043,147.72,147.7,6.7672]
[1749185012114,0.05002043,147.72,147.69,0.04884635]
[1749185012913,6.81642043,147.72,147.69,0.04884635]
[1749185013311,6.81642043,147.72,147.69,6.81644635]
[1749185013913,0.05002043,147.72,147.69,6.81644635]
[1749185014514,0.05002043,147.72,147.69,0.04884635]
[1749185014714,4.81189453,147.71,147.69,0.04884635]
[1749185014914,4.81189453,147.71,147.6,34.1]
[1749185015216,4.81189453,147.71,147.65,6.7691]
[1749185015217,11.57959453,147.69,147.65,6.7691]
[1749185015408,34.1,147.68,147.65,6.7691]
[1749185015608,34.1,147.68,147.66,6.769]
[1749185015814,34.15139949,147.68,147.66,6.81201166]
[1749185016014,34.15139949,147.68,147.66,0.04301166]
[1749185019609,38.96329402,147.68,147.66,6.81191166]
[1749185020023,38.96329402,147.68,147.66,0.04301166]
[1749185020225,45.73149402,147.68,147.66,0.04301166]
[1749185020426,38.96329402,147.68,147.66,0.04301166]
[1749185021322,38.96329402,147.68,147.66,6.81191166]
[1749185022415,34.15139949,147.68,147.67,6.7686]
[1749185023121,0.05139949,147.68,147.67,6.7686]
[1749185027617,0.05139949,147.68,147.67,11.58049453]
[1749185029023,0.05139949,147.68,147.67,6.7686]
[1749185046137,34.12,147.74,147.66,4.85490619]
[1749185046342,34.12,147.74,147.7,4.81189453]
[1749185046836,34.12,147.74,147.73,6.7659]
[1749185051339,47.61787241,147.74,147.72,0.05189119]
[1749185051636,34.12,147.74,147.73,6.7659]
[1749185051841,38.92793171,147.74,147.73,6.7659]
[1749185052241,34.12,147.74,147.73,6.7659]
[1749185052441,38.95505643,147.74,147.73,6.7659]
[1749185052635,38.9550564,147.74,147.73,6.7659]
[1749185053444,34.12,147.74,147.73,6.7659]
[1749185053739,44.83889427,147.74,147.73,6.7659]
[1749185054148,40.00104473,147.74,147.73,6.7659]
[1749185054447,44.83889435,147.74,147.73,6.7659]
[1749185055248,40.00104473,147.74,147.73,6.7659]
[1749185055449,44.83927118,147.74,147.73,6.7659]
[1749185055741,44.83927114,147.74,147.73,6.7659]
[1749185056347,44.83907978,147.74,147.73,6.7659]
[1749185057048,40.00104473,147.74,147.73,6.7659]
[1749185057252,44.828385,147.74,147.73,6.7659]
[1749185057445,34.12,147.74,147.73,6.7659]
[1749185060749,40.0023414,147.74,147.73,6.7659]
[1749185061655,40.0023414,147.74,147.72,6.81799119]
[1749185061857,5.8823414,147.73,147.72,6.81799119]
[1749185062558,10.7066442,147.73,147.72,6.81799119]
[1749185062755,10.70664472,147.73,147.72,6.81799119]
[1749185063055,5.8823414,147.73,147.72,6.81799119]
[1749185064049,10.7127771,147.73,147.72,6.81799119]
[1749185064250,34.12,147.74,147.73,6.7659]
[1749185064450,47.65057322,147.74,147.73,6.7659]
[1749185065550,47.6512653,147.74,147.73,6.7659]
[1749185065754,47.65131296,147.74,147.73,6.7659]
[1749185065957,47.65135639,147.74,147.73,6.7659]
[1749185066152,42.82092986,147.74,147.73,6.7659]
[1749185066352,47.64634733,147.74,147.73,6.7659]
[1749185067046,40.00544069,147.74,147.73,6.7659]
[1749185067352,49.64801111,147.74,147.72,6.81819119]
[1749185067551,13.52829997,147.73,147.72,6.81819119]
[1749185067760,10.71610777,147.73,147.72,6.81819119]
[1749185067953,13.52819082,147.73,147.72,6.81819119]
[1749185068149,13.52822589,147.73,147.72,6.81819119]
[1749185068850,13.52360188,147.73,147.72,6.81819119]
[1749185069050,10.7118355,147.73,147.72,6.81819119]
[1749185069351,5.88544069,147.73,147.72,0.05189119]
[1749185069553,10.69733522,147.73,147.65,6.90149453]
[1749185069750,13.52402905,147.72,147.65,4.81189453]
[1749185069947,5.88544069,147.71,147.65,4.81189453]
[1749185070148,34.1,147.7,147.69,6.7677]
[1749185070457,38.92643084,147.7,147.69,6.7677]
[1749185070657,39.99239469,147.7,147.69,6.7677]
[1749185071364,44.82402144,147.7,147.69,6.7677]
[1749185071552,39.99239469,147.7,147.69,6.7677]
[1749185071857,44.82401991,147.7,147.69,6.7677]
[1749185072357,39.99239469,147.7,147.69,6.7677]
[1749185072551,44.82402045,147.7,147.69,6.7677]
[1749185072758,44.82402192,147.7,147.69,6.7677]
[1749185073757,44.81229884,147.7,147.69,6.7677]
[1749185073958,44.81290011,147.7,147.69,6.7677]
[1749185074260,44.81289956,147.7,147.69,6.7677]
[1749185074456,44.81289802,147.7,147.69,6.7677]
[1749185075356,39.99239469,147.7,147.69,6.7677]
[1749185075552,44.80586054,147.7,147.69,6.7677]
[1749185075858,42.80136812,147.7,147.69,6.7677]
[1749185076058,44.80586606,147.7,147.69,6.7677]
[1749185076454,0.04432196,147.71,147.7,6.7672]
[1749185085563,4.88498315,147.71,147.7,6.7672]
[1749185085766,10.78099519,147.71,147.7,6.7672]
[1749185085961,10.78100316,147.71,147.7,6.7672]
[1749185086160,7.70426219,147.71,147.7,6.7672]
[1749185086368,4.88498946,147.71,147.7,6.7672]
[1749185086568,13.60039309,147.71,147.7,6.7672]
[1749185086867,10.78102963,147.71,147.7,6.7672]
[1749185087263,13.60350067,147.71,147.7,6.7672]
[1749185087468,13.60353284,147.71,147.7,6.7672]
[1749185087866,10.7810304,147.71,147.7,6.7672]
[1749185088168,8.76296687,147.71,147.69,6.7675]
[1749185088369,4.83524544,147.7,147.69,6.7675]
[1749185088564,0.04432196,147.71,147.7,6.7672]
[1749185088763,8.76356718,147.71,147.7,6.7672]
[1749185089068,13.5986818,147.71,147.7,6.7672]
[1749185089466,10.77616328,147.71,147.7,6.7672]
[1749185089662,13.5986818,147.71,147.7,6.7672]
[1749185089862,8.76356718,147.71,147.7,6.7672]
[1749185090067,13.59868616,147.71,147.7,6.7672]
[1749185090267,8.76365751,147.71,147.7,6.7672]
[1749185090459,10.77617133,147.71,147.7,6.7672]
[1749185090862,10.77617133,147.71,147.68,0.05052372]
[1749185090863,5.94104866,147.71,147.68,0.05052372]
[1749185091058,5.8967267,147.7,147.68,0.05052372]
[1749185091267,0.04432196,147.71,147.68,6.81832372]
[1749185091464,13.54848536,147.7,147.68,6.81832372]
[1749185091666,42.79649606,147.69,147.68,6.81832372]
[1749185091865,44.80572544,147.69,147.68,6.81832372]
[1749185092069,44.80571818,147.69,147.68,6.81832372]
[1749185092268,44.80571817,147.69,147.68,6.81832372]
[1749185092468,47.61939699,147.69,147.68,6.81832372]
[1749185092669,42.78746373,147.69,147.68,6.81832372]
[1749185093165,42.78682071,147.69,147.68,6.81832372]
[1749185093372,44.79459407,147.69,147.68,6.81832372]
[1749185093572,42.7868252,147.69,147.68,6.81832372]
[1749185093767,44.79459414,147.69,147.68,6.81832372]
[1749185093977,47.60770332,147.69,147.68,6.81832372]
[1749185094477,47.60574307,147.69,147.68,6.81832372]
[1749185094780,47.60569564,147.69,147.68,6.81832372]
[1749185095076,41.71191966,147.69,147.68,6.81832372]
[1749185095276,38.89895548,147.69,147.68,6.81832372]
[1749185095476,34.08,147.69,147.68,6.81832372]
[1749185095677,38.89950869,147.69,147.68,6.81832372]
[1749185096578,0.04432196,147.71,147.7,6.7672]
[1749185096779,13.55860339,147.71,147.7,6.7672]
[1749185096978,4.86380375,147.71,147.7,6.7672]
[1749185097280,4.86378856,147.71,147.7,6.7672]
[1749185097479,0.04432196,147.71,147.7,6.7672]
[1749185097672,4.8637917,147.71,147.7,6.7672]
[1749185098278,0.04432196,147.71,147.7,6.7672]
[1749185098478,4.86361181,147.71,147.7,6.7672]
[1749185098879,0.04432196,147.71,147.7,6.7672]
[1749185099571,4.86284853,147.71,147.7,6.7672]
[1749185100079,4.8628571,147.71,147.7,6.7672]
[1749185100378,4.86285254,147.71,147.7,6.7672]
[1749185100676,4.86284799,147.71,147.7,6.7672]
[1749185100872,4.86284854,147.71,147.7,6.7672]
[1749185101072,4.86284853,147.71,147.7,6.7672]
[1749185101272,4.86265851,147.71,147.7,6.7672]
[1749185101479,0.04432196,147.71,147.7,6.7672]
[1749185101680,4.86265847,147.71,147.7,6.7672]
[1749185102173,4.86808931,147.71,147.7,6.7672]
[1749185102580,4.86809811,147.71,147.7,6.7672]
[1749185102781,0.04432196,147.71,147.7,6.7672]
[1749185102983,4.86808926,147.71,147.7,6.7672]
[1749185103179,0.04432196,147.71,147.7,6.7672]
[1749185103379,4.86985239,147.71,147.7,6.7672]
[1749185103586,10.76167809,147.71,147.7,6.7672]
[1749185103781,13.57811063,147.71,147.7,6.7672]
[1749185104083,7.68693434,147.71,147.7,6.7672]
[1749185104285,13.57840103,147.71,147.7,6.7672]
[1749185104586,5.9357928,147.71,147.7,6.7672]
[1749185104785,13.57844928,147.71,147.7,6.7672]
[1749185104980,13.57851035,147.71,147.7,6.7672]
[1749185105181,13.57851035,147.71,147.68,0.05052372]
[1749185105386,4.8262346,147.7,147.68,0.05052372]
[1749185105575,0.04432196,147.71,147.68,4.85971045]
[1749185105775,0.04432196,147.71,147.7,6.7672]
[1749185109374,2.196e-05,147.71,147.7,6.7672]
[1749185110185,2.196e-05,147.71,147.7,11.57494574]
[1749185113584,2.196e-05,147.71,147.7,6.7672]
[1749185113980,4.83726415,147.71,147.7,6.7672]
[1749185114181,4.83726415,147.71,147.69,6.7676]
[1749185114387,2.196e-05,147.71,147.68,0.05052372]
[1749185114686,2.196e-05,147.71,147.69,6.7673]
[1749185114891,2.196e-05,147.71,147.68,0.05052372]
[1749185115290,2.196e-05,147.71,147.69,6.7677]
[1749185115487,2.196e-05,147.71,147.68,0.05052372]
[1749185115991,4.84051451,147.7,147.68,0.05052372]
[1749185116286,34.06002196,147.71,147.68,0.05052372]
[1749185116488,34.06002196,147.71,147.7,6.7672]
[1749185116689,44.79416875,147.71,147.7,6.7672]
[1749185116990,47.59291344,147.71,147.7,6.7672]
[1749185117184,39.95364771,147.71,147.7,6.7672]
[1749185117389,47.59332602,147.71,147.7,6.7672]
[1749185117591,2.196e-05,147.71,147.7,6.7672]
[1749185124882,13.54815944,147.76,147.75,6.7645]
[1749185125084,4.83735534,147.76,147.75,6.7645]
[1749185125292,34.06,147.77,147.74,4.81026232]
[1749185125790,34.10792609,147.77,147.74,4.85827988]
[1749185126388,34.10792609,147.77,147.76,6.7645]
[1749185126592,38.94471518,147.77,147.76,6.7645]
[1749185126794,38.95014265,147.77,147.76,6.7645]
[1749185126994,34.10792609,147.77,147.76,6.7645]
[1749185127194,38.95014537,147.77,147.76,6.7645]
[1749185127691,34.10792609,147.77,147.76,6.7645]
[1749185127896,38.95014265,147.77,147.75,6.7648]
[1749185128192,34.10792609,147.77,147.74,4.85827988]
[1749185128395,34.10792609,147.77,147.75,6.765]
[1749185129195,4.85077387,147.76,147.75,6.765]
[1749185129497,34.10792609,147.77,147.75,6.765]
[1749185130800,4.84958406,147.76,147.74,6.81331756]
[1749185131089,34.10792609,147.77,147.74,0.04801756]
[1749185131592,34.10792609,147.77,147.75,6.7647]
[1749185132686,34.10792609,147.77,147.76,6.7645]
[1749185133095,0.04792609,147.77,147.76,6.7645]
[1749185140201,0.04792609,147.77,147.76,11.57476232]
[1749185143603,0.04792609,147.77,147.76,6.7645]
[1749185143904,0.04792609,147.77,147.76,11.57476232]
[1749185144904,2.609e-05,147.77,147.76,11.57476232]
[1749185146313,34.04,147.83,147.81,6.7621]
[1749185146704,34.04,147.83,147.78,4.81026232]
[1749185147506,0.0449319,147.82,147.79,6.80728294]
[1749185148001,0.0449319,147.82,147.79,0.04418294]
[1749185148203,0.0449319,147.82,147.8,6.7624]
[1749185148600,0.0449319,147.82,147.79,0.04418294]
[1749185148899,0.0449319,147.82,147.81,6.7622]
[1749185149904,0.0449319,147.82,147.8,6.7625]
[1749185150301,0.0449319,147.82,147.8,6.7622]
[1749185152604,0.0449319,147.82,147.79,0.04418294]
[1749185152799,2.8821835,147.82,147.79,0.04418294]
[1749185153003,0.0449319,147.82,147.79,0.04418294]
[1749185153205,3.0750957,147.81,147.79,0.04418294]
[1749185154605,3.0750957,147.8,147.79,0.04418294]
[1749185155211,6.7623,147.81,147.79,0.04418294]
[1749185156610,6.7627,147.8,147.7,2.2439]
[1749185156805,6.7627,147.8,147.74,4.80548382]
[1749185157000,34.02,147.79,147.73,38.84548382]
[1749185157405,34.02,147.79,147.76,6.7642]
[1749185157604,34.07089827,147.79,147.76,6.815969]
[1749185160213,34.07089827,147.79,147.76,0.051769]
[1749185161011,34.07089827,147.79,147.76,6.816069]
[1749185161207,34.07089827,147.79,147.76,0.051769]
[1749185161412,6.764,147.77,147.76,0.051769]
[1749185161610,17.49242006,147.77,147.76,0.051769]
[1749185161802,17.49242002,147.77,147.76,0.051769]
[1749185162007,12.62572409,147.77,147.76,0.051769]
[1749185162311,5.86172409,147.77,147.69,4.80548382]
[1749185162509,5.86172409,147.77,147.66,4.4748]
[1749185162510,4.80548382,147.74,147.66,4.4748]
[1749185162709,6.7666,147.72,147.65,34.02]
[1749185162909,4.80548382,147.72,147.65,38.82548382]
[1749185163109,0.05118295,147.7,147.67,0.04426763]
[1749185164017,0.05118295,147.7,147.68,6.7679]
[1749185164812,0.05118295,147.7,147.69,6.7677]
[1749185165506,0.05118295,147.7,147.67,0.04426763]
[1749185165714,0.05118295,147.7,147.68,6.768]
[1749185165914,0.05118295,147.7,147.67,0.04426763]
[1749185166516,0.05118295,147.7,147.68,6.7682]
[1749185167016,0.05118295,147.7,147.67,6.81266763]
[1749185167519,0.05118295,147.7,147.67,0.04426763]
[1749185168519,0.05118295,147.7,147.68,6.7679]
[1749185169016,0.05118295,147.7,147.67,0.04426763]
[1749185169017,0.05118295,147.7,147.69,11.57318382]
[1749185169417,8.295e-05,147.7,147.69,11.57318382]
[1749185177322,34.06,147.77,147.69,4.80548382]
[1749185177526,34.06,147.77,147.68,2.2055]
[1749185177725,34.06,147.77,147.72,4.80548382]
[1749185178323,0.04283953,147.76,147.73,0.05062645]
[1749185178721,0.04283953,147.76,147.74,6.7651]
[1749185178923,0.04283953,147.76,147.73,0.05062645]
[1749185179321,0.04283953,147.76,147.75,6.7649]
[1749185180623,0.04283953,147.76,147.75,11.57038382]
[1749185181023,0.04283953,147.76,147.75,6.7649]
[1749185186440,0.04283953,147.76,147.75,11.57038382]
[1749185186640,3.953e-05,147.76,147.75,11.57038382]
[1749185187339,3.953e-05,147.76,147.75,6.7649]
[1749185189637,3.953e-05,147.76,147.74,6.7653]
[1749185190940,3.953e-05,147.76,147.75,6.7649]
[1749185199746,3.953e-05,147.76,147.74,6.7652]
[1749185199942,3.953e-05,147.76,147.73,4.85611027]
[1749185200544,3.953e-05,147.76,147.75,6.7649]
[1749185204846,3.953e-05,147.76,147.73,0.05062645]
[1749185204847,34.04003953,147.76,147.73,0.05062645]
[1749185205039,4.8694077,147.75,147.73,0.05062645]
[1749185205242,34.04003953,147.76,147.73,0.05062645]
[1749185205441,4.8694165,147.75,147.73,6.81622645]
[1749185205645,34.04003953,147.76,147.73,0.05062645]
[1749185205846,4.87017068,147.75,147.74,6.7654]
[1749185206045,34.04003953,147.76,147.73,0.05062645]
[1749185207649,34.04003953,147.76,147.75,6.7649]
[1749185208251,38.90489961,147.76,147.75,6.7649]
[1749185208450,38.90489954,147.76,147.75,6.7649]
[1749185208850,38.90490085,147.76,147.75,6.7649]
[1749185209554,34.04003953,147.76,147.75,6.7649]
[1749185209747,38.90476244,147.76,147.75,6.7649]
[1749185209951,38.90477227,147.76,147.75,6.7649]
[1749185210746,34.04003953,147.76,147.75,6.7649]
[1749185212050,38.89836586,147.76,147.75,6.7649]
[1749185212253,34.04003953,147.76,147.75,6.7649]
[1749185212753,38.91073185,147.76,147.75,6.7649]
[1749185212952,4.87073185,147.76,147.75,6.7649]
[1749185213145,3.953e-05,147.76,147.75,6.7649]
[1749185213343,4.87072623,147.76,147.75,6.7649]
[1749185213549,4.87072488,147.76,147.75,6.7649]
[1749185214147,4.87248766,147.76,147.75,6.7649]
[1749185214347,4.87248901,147.76,147.75,6.7649]
[1749185214551,3.953e-05,147.76,147.75,6.7649]
[1749185214755,4.87248763,147.76,147.75,6.7649]
[1749185215054,4.87248718,147.76,147.75,6.7649]
[1749185215243,3.953e-05,147.76,147.75,6.7649]
[1749185215449,4.8724911,147.76,147.75,6.7649]
[1749185215645,3.953e-05,147.76,147.75,6.7649]
[1749185224952,3.953e-05,147.76,147.75,11.57038382]
[1749185226861,3.953e-05,147.76,147.75,6.7649]
[1749185227057,3.953e-05,147.76,147.75,11.57038382]
[1749185233258,3.953e-05,147.76,147.75,9.83962095]
[1749185234368,3.953e-05,147.76,147.75,6.7649]
[1749185234565,3.953e-05,147.76,147.75,9.83962095]
[1749185240275,3.953e-05,147.76,147.75,6.7649]
[1749185240472,3.953e-05,147.76,147.75,9.83962095]
[1749185243883,34.38,147.81,147.8,6.7627]
[1749185244272,34.38,147.81,147.8,9.83742095]
[1749185244877,34.38,147.81,147.8,6.7627]
[1749185245077,0.04917517,147.82,147.79,3.12451814]
[1749185245477,4.87798924,147.81,147.8,6.7627]
[1749185245878,0.04917517,147.82,147.8,3.07472095]
[1749185246279,0.04917517,147.82,147.81,6.7622]
[1749185246482,10.79849047,147.82,147.81,6.7622]
[1749185246782,5.92315114,147.82,147.81,6.7622]
[1749185246983,4.92451404,147.82,147.81,6.7622]
[1749185247383,4.92824424,147.82,147.81,6.7622]
[1749185247574,4.9282454,147.82,147.81,6.7622]
[1749185248583,4.9273699,147.82,147.81,6.7622]
[1749185248778,0.04917517,147.82,147.81,6.7622]
[1749185248983,4.92717565,147.82,147.81,6.7622]
[1749185249578,10.80391937,147.82,147.81,6.7622]
[1749185249886,10.80427979,147.82,147.81,6.7622]
[1749185250084,4.92744125,147.82,147.81,6.7622]
[1749185250285,5.92576294,147.82,147.81,6.7622]
[1749185250474,2.89272353,147.82,147.81,6.7622]
[1749185250675,7.77468089,147.82,147.81,6.7622]
[1749185250876,7.77462907,147.82,147.81,6.7622]
[1749185251078,13.65257334,147.82,147.81,6.7622]
[1749185251285,13.65200029,147.82,147.81,6.7622]
[1749185251484,10.80889418,147.82,147.81,6.7622]
[1749185251675,13.65823022,147.82,147.81,6.7622]
[1749185251880,4.93063293,147.82,147.81,6.7622]
[1749185252076,4.93063293,147.82,147.81,9.83692095]
[1749185252077,0.04917517,147.82,147.81,9.83692095]
[1749185253285,423.88,147.92,147.89,6.7585]
[1749185253486,5.87356523,147.91,147.89,3.07472095]
[1749185253787,4.88664862,147.9,147.89,3.07472095]
[1749185253989,4.88664862,147.9,147.82,2.254]
[1749185254189,5.86789971,147.91,147.9,6.7581]
[1749185254384,4.88857698,147.91,147.9,3.07472095]
[1749185254583,4.88857698,147.91,147.89,0.05043792]
[1749185254584,2.84959159,147.91,147.89,0.05043792]
[1749185254788,3.07472095,147.91,147.89,0.05043792]
[1749185255089,5.85112763,147.9,147.89,0.05043792]
[1749185255280,7.73818041,147.9,147.89,0.05043792]
[1749185255583,2.84961163,147.9,147.89,0.05043792]
[1749185255987,4.88857774,147.9,147.89,0.05043792]
[1749185256184,2.84963124,147.9,147.89,0.05043792]
[1749185256391,7.73632724,147.9,147.89,0.05043792]
[1749185256688,2.84963705,147.9,147.89,0.05043792]
[1749185256884,4.88669236,147.9,147.89,0.05043792]
[1749185257088,2.84965359,147.9,147.89,0.05043792]
[1749185257289,2.87685279,147.9,147.89,0.05043792]
[1749185257588,7.76646392,147.9,147.89,0.05043792]
[1749185257789,7.7664256,147.9,147.89,0.05043792]
[1749185258090,4.88960763,147.9,147.89,0.05043792]
[1749185258290,11.62353535,147.9,147.89,0.05043792]
[1749185258585,14.49221099,147.9,147.89,0.05043792]
[1749185258786,12.61261685,147.91,147.89,0.05043792]
[1749185258992,4.90329766,147.9,147.89,0.05043792]
[1749185259187,6.7577,147.91,147.89,0.05043792]
[1749185260083,4.9165927,147.9,147.89,0.05043792]
[1749185260490,4.91658987,147.9,147.89,0.05043792]
[1749185260687,430.6373,147.92,147.89,0.05043792]
[1749185261093,4.91659914,147.91,147.89,0.05043792]
[1749185261294,4.91659914,147.9,147.89,0.05043792]
[1749185261493,4.91659914,147.91,147.89,0.05043792]
[1749185261794,11.66633246,147.91,147.89,0.05043792]
[1749185262187,6.7577,147.91,147.89,0.05043792]
[1749185262392,11.66633553,147.91,147.89,0.05043792]
[1749185262591,6.7577,147.91,147.89,0.05043792]
[1749185263791,6.7581,147.9,147.89,0.05043792]
[1749185264388,7.0276338,147.91,147.89,0.05043792]
[1749185264789,4.90173402,147.9,147.89,0.05043792]
[1749185264994,14.10464009,147.91,147.89,0.05043792]
[1749185265193,6.7581,147.9,147.89,0.05043792]
[1749185267096,6.759,147.89,147.84,4.7980338]
[1749185267490,6.759,147.89,147.85,6.76]
[1749185267996,0.04558821,147.88,147.86,0.0431042]
[1749185269596,35.10558821,147.88,147.86,0.0431042]
[1749185270395,35.10558821,147.88,147.86,6.8030042]
[1749185274598,35.10558821,147.88,147.86,0.0431042]
[1749185275393,4.8896914,147.87,147.79,39.8580338]
[1749185275701,4.7980338,147.85,147.79,39.8580338]
[1749185275903,4.8896914,147.86,147.79,4.7980338]
[1749185276101,9.6877252,147.86,147.79,4.7980338]
[1749185276300,0.04272614,147.84,147.82,6.7614]
[1749185277199,3.11617533,147.84,147.82,6.7614]
[1749185279205,0.04272614,147.84,147.82,6.7614]
[1749185280702,0.04272614,147.84,147.81,0.04481144]
[1749185281299,0.04272614,147.84,147.83,6.7613]
[1749185282408,0.04272614,147.84,147.83,11.56358772]
[1749185285197,0.04272614,147.84,147.83,6.7613]
[1749185289401,35.06,147.88,147.87,6.7595]
[1749185289809,39.96432183,147.88,147.87,6.7595]
[1749185290010,39.9643218,147.88,147.86,6.7598]
[1749185290206,35.06,147.88,147.83,4.80228772]
[1749185290510,0.04499359,147.87,147.84,0.05122105]
[1749185290705,0.04499359,147.87,147.86,6.7599]
[1749185297206,0.04499359,147.87,147.86,11.56218772]
[1749185300217,0.04499359,147.87,147.86,6.7599]
[1749185300617,0.04499359,147.87,147.85,6.7603]
[1749185300819,7.82367744,147.86,147.84,0.05122105]
[1749185301019,0.04499359,147.87,147.84,0.05122105]
[1749185301212,0.04499359,147.87,147.86,6.7599]
[1749185301616,2.92010854,147.87,147.86,6.7599]
[1749185301814,7.8731012,147.87,147.86,6.7599]
[1749185302013,0.04499359,147.87,147.86,6.7599]
[1749185302213,7.87295733,147.87,147.86,6.7599]
[1749185302410,7.87295117,147.87,147.86,6.7599]